{"text_format":"1","workbook":"xlsx","n_sheets":11,"sheets":["Comment remplir","BGAD1","BGAD2","BGAD3","BGAD4","BGAD5","BGAD6","BGAD7","BGAD8","BGAD9","BGAD10"],"not_rendered":{"charts":0,"images":2,"macros":1,"external_links":0,"defined_names":20,"comments":0,"pivot_tables":0},"unopened":[],"bounds":{"document_bytes":16777216,"sheet_cells":100000,"rows_first":2000,"rows_last":500,"rows_between":2000,"halvings":0,"cell_chars":16384,"cell_head_chars":4096},"cells_cut":0,"cells_raw":0,"read":"whole","date_system":"1900"}

{"sheet":"Comment remplir","index":0,"n_rows":31,"n_cols":4,"rows_kept":31,"cut":false,"hidden":false,"merged":[]}
[]
["La saisie s'effectue seulement dans les cases identifiées par les bulles."]
[]
[]
[]
[]
[]
[]
[]
[]
[]
[]
[]
[]
[]
[]
[]
[]
[]
[]
[]
[]
[]
[]
[]
[]
[]
[]
[]
[]
[null,null,null,"MP mlnu2016"]

{"sheet":"BGAD1","index":1,"n_rows":72,"n_cols":16,"rows_kept":72,"cut":false,"hidden":false,"merged":[[0,0,0,9],[51,3,51,7],[52,3,52,7],[6,3,6,6],[6,8,6,9],[49,3,49,7],[50,3,50,7],[34,1,36,9],[5,8,5,9],[2,0,2,1],[2,2,2,3],[4,0,4,1],[4,2,4,3],[3,0,3,1],[3,2,3,3]]}
["Déclaration de la MLNU"]
[null,null,null,null,null,null,null,null,null,null,null,null,null,null,null,"2016-2017"]
["Année de récolte :",null,"2018-2019",null,null,null,null,null,null,null,null,null,null,null,null,"2017-2018"]
["Unité d'aménagement :"]
["No. Du BGAd :",null,null,null,null,null,null,null,null,null,null,null,null,null,null,"2018-2019"]
[null,null,null,null,null,null,null,null,"Répartition",null,null,null,null,null,null,"2019-2020"]
[null,null,null,"Volume de MLNU",null,null,null,null,"MLNU-ND Qualité «U»"]
["Code Essence","Nom essence","No. Client","MLNU-RG\nQualité \"V\"","MLNU-ND\nQualité \"X\"","MLNU-ND\nQualité \"U\"","Total du Client",null,"Ententes\n«Autres»","Mesure budgétaire"]
["010","Épinette (autre que Norvège)",null,null,null,{"$f":"SUM(I9:J9)","v":0},{"$f":"SUM(D9:F9)","v":0}]
["014","Épinette de Norvège",null,null,null,{"$f":"SUM(I10:J10)","v":0},{"$f":"SUM(D10:F10)","v":0}]
["030","Mélèze laricin",null,null,null,0,0]
["043","Pin gris et sylvestre",null,null,null,0,0]
["060","Sapin baumier",null,null,null,0,0]
["190","Peuplier (autre que Baumier)",null,null,null,0,{"$f":"SUM(D14:F14)","v":0}]
["191","Peuplier baumier",null,null,null,0,{"$f":"SUM(D15:F15)","v":0}]
["105","Bouleau blanc ",null,null,null,0,0]
["104","Bouleau jaune",null,null,null,0,0]
["132","Érable à sucre",null,null,null,0,0]
["133","Érable rouge",null,null,null,0,0]
["135","Érables - Autres ",null,null,null,0,0]
["120","Chêne ",null,null,null,0,0]
["141","Frêne d’Amérique (blanc)",null,null,null,0,0]
["142","Frêne noir",null,null,null,0,0]
["150","Hêtre",null,null,null,0,0]
["160","Noyer",null,null,null,0,0]
["165","Caryer",null,null,null,0,0]
["170","Orme",null,null,null,0,0]
["180","Ostryer de Virginie",null,null,null,0,0]
["110","Cerisier tardif",null,null,null,0,0]
["210","Tilleul d’Amérique",null,null,null,0,0]
["041","Pin blanc",null,null,null,0,0]
["042","Pin rouge",null,null,null,0,0]
["050","Pruche de l’Est",null,null,null,0,0]
["080","Thuya occidental",null,null,null,0,0]
[null,"Je déclare que les volumes de matière ligneuse non utilisée indiqués à cette déclaration couvrent l'ensemble des secteurs d'intervention de l'UA sous la responsabilité du BGAd indiqué à cette déclaration et que ces volumes sont déterminés en conformité à la règlementation en vigueur et à l'instruction sur la «Détermination des superficies récoltées pour fins de reddition de comptes»."]
[]
[]
[]
[null,"signature : _____________________________________________________ ing. f.               Date : ______________________"]
[]
[]
[]
[null,null,null,{"$f":"SUBTOTAL(9,D8:D34)","v":0},{"$f":"SUBTOTAL(9,E8:E34)","v":0},{"$f":"SUBTOTAL(9,F8:F34)","v":0},{"$f":"SUBTOTAL(9,G8:G34)","v":0},null,{"$f":"SUBTOTAL(9,I8:I34)","v":0},null,null,{"$f":"SUBTOTAL(9,L8:L34)","v":0}]
[]
[]
[]
[]
[]
[]
[null,null,null,"MANUEL SUR LA GESTION DES VOLUMES RÉCOLTÉS"]
[null,null,null,"6.3.2.1 Matière ligneuse non utilisée - régulière (MLNU-RG)"]
[null,null,null,"6.3.2.2 Matière ligneuse non utilisée - non désirée (MLNU-ND)"]
[null,null,null,"6.3.2.3 Matière ligneuse non utilisée - sans preneur (MLNU-SP)"]
[]
[]
[]
[]
[]
[]
[]
[]
[]
[]
[]
[null,null,null,null,null,null,null,null,null,67]
[null,null,null,null,null,null,null,null,null,68]
[null,null,null,null,null,null,null,null,null,69]
[null,null,null,null,null,null,null,null,null,70]
[null,null,null,null,null,null,null,null,null,71]
[null,null,null,null,null,null,null,null,null,72]
[null,null,null,null,null,null,null,null,null,73]
[null,null,null,null,null,null,null,null,null,74]

{"sheet":"BGAD2","index":2,"n_rows":72,"n_cols":16,"rows_kept":72,"cut":false,"hidden":false,"merged":[[4,0,4,1],[4,2,4,3],[0,0,0,9],[2,0,2,1],[2,2,2,3],[3,0,3,1],[3,2,3,3],[51,3,51,7],[52,3,52,7],[5,8,5,9],[6,3,6,6],[6,8,6,9],[34,1,36,9],[49,3,49,7],[50,3,50,7]]}
["Déclaration de la MLNU"]
[null,null,null,null,null,null,null,null,null,null,null,null,null,null,null,"2016-2017"]
["Année de récolte :",null,"2018-2019",null,null,null,null,null,null,null,null,null,null,null,null,"2017-2018"]
["Unité d'aménagement :"]
["No. Du BGAd :",null,null,null,null,null,null,null,null,null,null,null,null,null,null,"2018-2019"]
[null,null,null,null,null,null,null,null,"Répartition",null,null,null,null,null,null,"2019-2020"]
[null,null,null,"Volume de MLNU",null,null,null,null,"MLNU-ND Qualité «U»"]
["Code Essence","Nom essence","No. Client","MLNU-RG\nQualité \"V\"","MLNU-ND\nQualité \"X\"","MLNU-ND\nQualité \"U\"","Total du Client",null,"Ententes\n«Autres»","Mesure budgétaire"]
["010","Épinette (autre que Norvège)",null,null,null,{"$f":"SUM(I9:J9)","v":0},{"$f":"SUM(D9:F9)","v":0}]
["014","Épinette de Norvège",null,null,null,{"$f":"SUM(I10:J10)","v":0},{"$f":"SUM(D10:F10)","v":0}]
["030","Mélèze laricin",null,null,null,0,0]
["043","Pin gris et sylvestre",null,null,null,0,0]
["060","Sapin baumier",null,null,null,0,0]
["190","Peuplier (autre que Baumier)",null,null,null,0,{"$f":"SUM(D14:F14)","v":0}]
["191","Peuplier baumier",null,null,null,0,{"$f":"SUM(D15:F15)","v":0}]
["105","Bouleau blanc ",null,null,null,0,0]
["104","Bouleau jaune",null,null,null,0,0]
["132","Érable à sucre",null,null,null,0,0]
["133","Érable rouge",null,null,null,0,0]
["135","Érables - Autres ",null,null,null,0,0]
["120","Chêne ",null,null,null,0,0]
["141","Frêne d’Amérique (blanc)",null,null,null,0,0]
["142","Frêne noir",null,null,null,0,0]
["150","Hêtre",null,null,null,0,0]
["160","Noyer",null,null,null,0,0]
["165","Caryer",null,null,null,0,0]
["170","Orme",null,null,null,0,0]
["180","Ostryer de Virginie",null,null,null,0,0]
["110","Cerisier tardif",null,null,null,0,0]
["210","Tilleul d’Amérique",null,null,null,0,0]
["041","Pin blanc",null,null,null,0,0]
["042","Pin rouge",null,null,null,0,0]
["050","Pruche de l’Est",null,null,null,0,0]
["080","Thuya occidental",null,null,null,0,0]
[null,"Je déclare que les volumes de matière ligneuse non utilisée indiqués à cette déclaration couvrent l'ensemble des secteurs d'intervention de l'UA sous la responsabilité du BGAd indiqué à cette déclaration et que ces volumes sont déterminés en conformité à la règlementation en vigueur et à l'instruction sur la «Détermination des superficies récoltées pour fins de reddition de comptes»."]
[]
[]
[]
[null,"signature : _____________________________________________________ ing. f.               Date : ______________________"]
[]
[]
[]
[null,null,null,{"$f":"SUBTOTAL(9,D8:D34)","v":0},{"$f":"SUBTOTAL(9,E8:E34)","v":0},{"$f":"SUBTOTAL(9,F8:F34)","v":0},{"$f":"SUBTOTAL(9,G8:G34)","v":0},null,{"$f":"SUBTOTAL(9,I8:I34)","v":0},null,null,{"$f":"SUBTOTAL(9,L8:L34)","v":0}]
[]
[]
[]
[]
[]
[]
[null,null,null,"MANUEL SUR LA GESTION DES VOLUMES RÉCOLTÉS"]
[null,null,null,"6.3.2.1 Matière ligneuse non utilisée - régulière (MLNU-RG)"]
[null,null,null,"6.3.2.2 Matière ligneuse non utilisée - non désirée (MLNU-ND)"]
[null,null,null,"6.3.2.3 Matière ligneuse non utilisée - sans preneur (MLNU-SP)"]
[]
[]
[]
[]
[]
[]
[]
[]
[]
[]
[]
[null,null,null,null,null,null,null,null,null,67]
[null,null,null,null,null,null,null,null,null,68]
[null,null,null,null,null,null,null,null,null,69]
[null,null,null,null,null,null,null,null,null,70]
[null,null,null,null,null,null,null,null,null,71]
[null,null,null,null,null,null,null,null,null,72]
[null,null,null,null,null,null,null,null,null,73]
[null,null,null,null,null,null,null,null,null,74]

{"sheet":"BGAD3","index":3,"n_rows":72,"n_cols":16,"rows_kept":72,"cut":false,"hidden":false,"merged":[[4,0,4,1],[4,2,4,3],[0,0,0,9],[2,0,2,1],[2,2,2,3],[3,0,3,1],[3,2,3,3],[51,3,51,7],[52,3,52,7],[5,8,5,9],[6,3,6,6],[6,8,6,9],[34,1,36,9],[49,3,49,7],[50,3,50,7]]}
["Déclaration de la MLNU"]
[null,null,null,null,null,null,null,null,null,null,null,null,null,null,null,"2016-2017"]
["Année de récolte :",null,"2018-2019",null,null,null,null,null,null,null,null,null,null,null,null,"2017-2018"]
["Unité d'aménagement :"]
["No. Du BGAd :",null,null,null,null,null,null,null,null,null,null,null,null,null,null,"2018-2019"]
[null,null,null,null,null,null,null,null,"Répartition",null,null,null,null,null,null,"2019-2020"]
[null,null,null,"Volume de MLNU",null,null,null,null,"MLNU-ND Qualité «U»"]
["Code Essence","Nom essence","No. Client","MLNU-RG\nQualité \"V\"","MLNU-ND\nQualité \"X\"","MLNU-ND\nQualité \"U\"","Total du Client",null,"Ententes\n«Autres»","Mesure budgétaire"]
["010","Épinette (autre que Norvège)",null,null,null,{"$f":"SUM(I9:J9)","v":0},{"$f":"SUM(D9:F9)","v":0}]
["014","Épinette de Norvège",null,null,null,{"$f":"SUM(I10:J10)","v":0},{"$f":"SUM(D10:F10)","v":0}]
["030","Mélèze laricin",null,null,null,0,0]
["043","Pin gris et sylvestre",null,null,null,0,0]
["060","Sapin baumier",null,null,null,0,0]
["190","Peuplier (autre que Baumier)",null,null,null,0,{"$f":"SUM(D14:F14)","v":0}]
["191","Peuplier baumier",null,null,null,0,{"$f":"SUM(D15:F15)","v":0}]
["105","Bouleau blanc ",null,null,null,0,0]
["104","Bouleau jaune",null,null,null,0,0]
["132","Érable à sucre",null,null,null,0,0]
["133","Érable rouge",null,null,null,0,0]
["135","Érables - Autres ",null,null,null,0,0]
["120","Chêne ",null,null,null,0,0]
["141","Frêne d’Amérique (blanc)",null,null,null,0,0]
["142","Frêne noir",null,null,null,0,0]
["150","Hêtre",null,null,null,0,0]
["160","Noyer",null,null,null,0,0]
["165","Caryer",null,null,null,0,0]
["170","Orme",null,null,null,0,0]
["180","Ostryer de Virginie",null,null,null,0,0]
["110","Cerisier tardif",null,null,null,0,0]
["210","Tilleul d’Amérique",null,null,null,0,0]
["041","Pin blanc",null,null,null,0,0]
["042","Pin rouge",null,null,null,0,0]
["050","Pruche de l’Est",null,null,null,0,0]
["080","Thuya occidental",null,null,null,0,0]
[null,"Je déclare que les volumes de matière ligneuse non utilisée indiqués à cette déclaration couvrent l'ensemble des secteurs d'intervention de l'UA sous la responsabilité du BGAd indiqué à cette déclaration et que ces volumes sont déterminés en conformité à la règlementation en vigueur et à l'instruction sur la «Détermination des superficies récoltées pour fins de reddition de comptes»."]
[]
[]
[]
[null,"signature : _____________________________________________________ ing. f.               Date : ______________________"]
[]
[]
[]
[null,null,null,{"$f":"SUBTOTAL(9,D8:D34)","v":0},{"$f":"SUBTOTAL(9,E8:E34)","v":0},{"$f":"SUBTOTAL(9,F8:F34)","v":0},{"$f":"SUBTOTAL(9,G8:G34)","v":0},null,{"$f":"SUBTOTAL(9,I8:I34)","v":0},null,null,{"$f":"SUBTOTAL(9,L8:L34)","v":0}]
[]
[]
[]
[]
[]
[]
[null,null,null,"MANUEL SUR LA GESTION DES VOLUMES RÉCOLTÉS"]
[null,null,null,"6.3.2.1 Matière ligneuse non utilisée - régulière (MLNU-RG)"]
[null,null,null,"6.3.2.2 Matière ligneuse non utilisée - non désirée (MLNU-ND)"]
[null,null,null,"6.3.2.3 Matière ligneuse non utilisée - sans preneur (MLNU-SP)"]
[]
[]
[]
[]
[]
[]
[]
[]
[]
[]
[]
[null,null,null,null,null,null,null,null,null,67]
[null,null,null,null,null,null,null,null,null,68]
[null,null,null,null,null,null,null,null,null,69]
[null,null,null,null,null,null,null,null,null,70]
[null,null,null,null,null,null,null,null,null,71]
[null,null,null,null,null,null,null,null,null,72]
[null,null,null,null,null,null,null,null,null,73]
[null,null,null,null,null,null,null,null,null,74]

{"sheet":"BGAD4","index":4,"n_rows":72,"n_cols":16,"rows_kept":72,"cut":false,"hidden":false,"merged":[[4,0,4,1],[4,2,4,3],[0,0,0,9],[2,0,2,1],[2,2,2,3],[3,0,3,1],[3,2,3,3],[51,3,51,7],[52,3,52,7],[5,8,5,9],[6,3,6,6],[6,8,6,9],[34,1,36,9],[49,3,49,7],[50,3,50,7]]}
["Déclaration de la MLNU"]
[null,null,null,null,null,null,null,null,null,null,null,null,null,null,null,"2016-2017"]
["Année de récolte :",null,"2018-2019",null,null,null,null,null,null,null,null,null,null,null,null,"2017-2018"]
["Unité d'aménagement :"]
["No. Du BGAd :",null,null,null,null,null,null,null,null,null,null,null,null,null,null,"2018-2019"]
[null,null,null,null,null,null,null,null,"Répartition",null,null,null,null,null,null,"2019-2020"]
[null,null,null,"Volume de MLNU",null,null,null,null,"MLNU-ND Qualité «U»"]
["Code Essence","Nom essence","No. Client","MLNU-RG\nQualité \"V\"","MLNU-ND\nQualité \"X\"","MLNU-ND\nQualité \"U\"","Total du Client",null,"Ententes\n«Autres»","Mesure budgétaire"]
["010","Épinette (autre que Norvège)",null,null,null,{"$f":"SUM(I9:J9)","v":0},{"$f":"SUM(D9:F9)","v":0}]
["014","Épinette de Norvège",null,null,null,{"$f":"SUM(I10:J10)","v":0},{"$f":"SUM(D10:F10)","v":0}]
["030","Mélèze laricin",null,null,null,0,0]
["043","Pin gris et sylvestre",null,null,null,0,0]
["060","Sapin baumier",null,null,null,0,0]
["190","Peuplier (autre que Baumier)",null,null,null,0,{"$f":"SUM(D14:F14)","v":0}]
["191","Peuplier baumier",null,null,null,0,{"$f":"SUM(D15:F15)","v":0}]
["105","Bouleau blanc ",null,null,null,0,0]
["104","Bouleau jaune",null,null,null,0,0]
["132","Érable à sucre",null,null,null,0,0]
["133","Érable rouge",null,null,null,0,0]
["135","Érables - Autres ",null,null,null,0,0]
["120","Chêne ",null,null,null,0,0]
["141","Frêne d’Amérique (blanc)",null,null,null,0,0]
["142","Frêne noir",null,null,null,0,0]
["150","Hêtre",null,null,null,0,0]
["160","Noyer",null,null,null,0,0]
["165","Caryer",null,null,null,0,0]
["170","Orme",null,null,null,0,0]
["180","Ostryer de Virginie",null,null,null,0,0]
["110","Cerisier tardif",null,null,null,0,0]
["210","Tilleul d’Amérique",null,null,null,0,0]
["041","Pin blanc",null,null,null,0,0]
["042","Pin rouge",null,null,null,0,0]
["050","Pruche de l’Est",null,null,null,0,0]
["080","Thuya occidental",null,null,null,0,0]
[null,"Je déclare que les volumes de matière ligneuse non utilisée indiqués à cette déclaration couvrent l'ensemble des secteurs d'intervention de l'UA sous la responsabilité du BGAd indiqué à cette déclaration et que ces volumes sont déterminés en conformité à la règlementation en vigueur et à l'instruction sur la «Détermination des superficies récoltées pour fins de reddition de comptes»."]
[]
[]
[]
[null,"signature : _____________________________________________________ ing. f.               Date : ______________________"]
[]
[]
[]
[null,null,null,{"$f":"SUBTOTAL(9,D8:D34)","v":0},{"$f":"SUBTOTAL(9,E8:E34)","v":0},{"$f":"SUBTOTAL(9,F8:F34)","v":0},{"$f":"SUBTOTAL(9,G8:G34)","v":0},null,{"$f":"SUBTOTAL(9,I8:I34)","v":0},null,null,{"$f":"SUBTOTAL(9,L8:L34)","v":0}]
[]
[]
[]
[]
[]
[]
[null,null,null,"MANUEL SUR LA GESTION DES VOLUMES RÉCOLTÉS"]
[null,null,null,"6.3.2.1 Matière ligneuse non utilisée - régulière (MLNU-RG)"]
[null,null,null,"6.3.2.2 Matière ligneuse non utilisée - non désirée (MLNU-ND)"]
[null,null,null,"6.3.2.3 Matière ligneuse non utilisée - sans preneur (MLNU-SP)"]
[]
[]
[]
[]
[]
[]
[]
[]
[]
[]
[]
[null,null,null,null,null,null,null,null,null,67]
[null,null,null,null,null,null,null,null,null,68]
[null,null,null,null,null,null,null,null,null,69]
[null,null,null,null,null,null,null,null,null,70]
[null,null,null,null,null,null,null,null,null,71]
[null,null,null,null,null,null,null,null,null,72]
[null,null,null,null,null,null,null,null,null,73]
[null,null,null,null,null,null,null,null,null,74]

{"sheet":"BGAD5","index":5,"n_rows":72,"n_cols":16,"rows_kept":72,"cut":false,"hidden":false,"merged":[[4,0,4,1],[4,2,4,3],[0,0,0,9],[2,0,2,1],[2,2,2,3],[3,0,3,1],[3,2,3,3],[51,3,51,7],[52,3,52,7],[5,8,5,9],[6,3,6,6],[6,8,6,9],[34,1,36,9],[49,3,49,7],[50,3,50,7]]}
["Déclaration de la MLNU"]
[null,null,null,null,null,null,null,null,null,null,null,null,null,null,null,"2016-2017"]
["Année de récolte :",null,"2018-2019",null,null,null,null,null,null,null,null,null,null,null,null,"2017-2018"]
["Unité d'aménagement :"]
["No. Du BGAd :",null,null,null,null,null,null,null,null,null,null,null,null,null,null,"2018-2019"]
[null,null,null,null,null,null,null,null,"Répartition",null,null,null,null,null,null,"2019-2020"]
[null,null,null,"Volume de MLNU",null,null,null,null,"MLNU-ND Qualité «U»"]
["Code Essence","Nom essence","No. Client","MLNU-RG\nQualité \"V\"","MLNU-ND\nQualité \"X\"","MLNU-ND\nQualité \"U\"","Total du Client",null,"Ententes\n«Autres»","Mesure budgétaire"]
["010","Épinette (autre que Norvège)",null,null,null,{"$f":"SUM(I9:J9)","v":0},{"$f":"SUM(D9:F9)","v":0}]
["014","Épinette de Norvège",null,null,null,{"$f":"SUM(I10:J10)","v":0},{"$f":"SUM(D10:F10)","v":0}]
["030","Mélèze laricin",null,null,null,0,0]
["043","Pin gris et sylvestre",null,null,null,0,0]
["060","Sapin baumier",null,null,null,0,0]
["190","Peuplier (autre que Baumier)",null,null,null,0,{"$f":"SUM(D14:F14)","v":0}]
["191","Peuplier baumier",null,null,null,0,{"$f":"SUM(D15:F15)","v":0}]
["105","Bouleau blanc ",null,null,null,0,0]
["104","Bouleau jaune",null,null,null,0,0]
["132","Érable à sucre",null,null,null,0,0]
["133","Érable rouge",null,null,null,0,0]
["135","Érables - Autres ",null,null,null,0,0]
["120","Chêne ",null,null,null,0,0]
["141","Frêne d’Amérique (blanc)",null,null,null,0,0]
["142","Frêne noir",null,null,null,0,0]
["150","Hêtre",null,null,null,0,0]
["160","Noyer",null,null,null,0,0]
["165","Caryer",null,null,null,0,0]
["170","Orme",null,null,null,0,0]
["180","Ostryer de Virginie",null,null,null,0,0]
["110","Cerisier tardif",null,null,null,0,0]
["210","Tilleul d’Amérique",null,null,null,0,0]
["041","Pin blanc",null,null,null,0,0]
["042","Pin rouge",null,null,null,0,0]
["050","Pruche de l’Est",null,null,null,0,0]
["080","Thuya occidental",null,null,null,0,0]
[null,"Je déclare que les volumes de matière ligneuse non utilisée indiqués à cette déclaration couvrent l'ensemble des secteurs d'intervention de l'UA sous la responsabilité du BGAd indiqué à cette déclaration et que ces volumes sont déterminés en conformité à la règlementation en vigueur et à l'instruction sur la «Détermination des superficies récoltées pour fins de reddition de comptes»."]
[]
[]
[]
[null,"signature : _____________________________________________________ ing. f.               Date : ______________________"]
[]
[]
[]
[null,null,null,{"$f":"SUBTOTAL(9,D8:D34)","v":0},{"$f":"SUBTOTAL(9,E8:E34)","v":0},{"$f":"SUBTOTAL(9,F8:F34)","v":0},{"$f":"SUBTOTAL(9,G8:G34)","v":0},null,{"$f":"SUBTOTAL(9,I8:I34)","v":0},null,null,{"$f":"SUBTOTAL(9,L8:L34)","v":0}]
[]
[]
[]
[]
[]
[]
[null,null,null,"MANUEL SUR LA GESTION DES VOLUMES RÉCOLTÉS"]
[null,null,null,"6.3.2.1 Matière ligneuse non utilisée - régulière (MLNU-RG)"]
[null,null,null,"6.3.2.2 Matière ligneuse non utilisée - non désirée (MLNU-ND)"]
[null,null,null,"6.3.2.3 Matière ligneuse non utilisée - sans preneur (MLNU-SP)"]
[]
[]
[]
[]
[]
[]
[]
[]
[]
[]
[]
[null,null,null,null,null,null,null,null,null,67]
[null,null,null,null,null,null,null,null,null,68]
[null,null,null,null,null,null,null,null,null,69]
[null,null,null,null,null,null,null,null,null,70]
[null,null,null,null,null,null,null,null,null,71]
[null,null,null,null,null,null,null,null,null,72]
[null,null,null,null,null,null,null,null,null,73]
[null,null,null,null,null,null,null,null,null,74]

{"sheet":"BGAD6","index":6,"n_rows":72,"n_cols":16,"rows_kept":72,"cut":false,"hidden":false,"merged":[[4,0,4,1],[4,2,4,3],[0,0,0,9],[2,0,2,1],[2,2,2,3],[3,0,3,1],[3,2,3,3],[51,3,51,7],[52,3,52,7],[5,8,5,9],[6,3,6,6],[6,8,6,9],[34,1,36,9],[49,3,49,7],[50,3,50,7]]}
["Déclaration de la MLNU"]
[null,null,null,null,null,null,null,null,null,null,null,null,null,null,null,"2016-2017"]
["Année de récolte :",null,"2018-2019",null,null,null,null,null,null,null,null,null,null,null,null,"2017-2018"]
["Unité d'aménagement :"]
["No. Du BGAd :",null,null,null,null,null,null,null,null,null,null,null,null,null,null,"2018-2019"]
[null,null,null,null,null,null,null,null,"Répartition",null,null,null,null,null,null,"2019-2020"]
[null,null,null,"Volume de MLNU",null,null,null,null,"MLNU-ND Qualité «U»"]
["Code Essence","Nom essence","No. Client","MLNU-RG\nQualité \"V\"","MLNU-ND\nQualité \"X\"","MLNU-ND\nQualité \"U\"","Total du Client",null,"Ententes\n«Autres»","Mesure budgétaire"]
["010","Épinette (autre que Norvège)",null,null,null,{"$f":"SUM(I9:J9)","v":0},{"$f":"SUM(D9:F9)","v":0}]
["014","Épinette de Norvège",null,null,null,{"$f":"SUM(I10:J10)","v":0},{"$f":"SUM(D10:F10)","v":0}]
["030","Mélèze laricin",null,null,null,0,0]
["043","Pin gris et sylvestre",null,null,null,0,0]
["060","Sapin baumier",null,null,null,0,0]
["190","Peuplier (autre que Baumier)",null,null,null,0,{"$f":"SUM(D14:F14)","v":0}]
["191","Peuplier baumier",null,null,null,0,{"$f":"SUM(D15:F15)","v":0}]
["105","Bouleau blanc ",null,null,null,0,0]
["104","Bouleau jaune",null,null,null,0,0]
["132","Érable à sucre",null,null,null,0,0]
["133","Érable rouge",null,null,null,0,0]
["135","Érables - Autres ",null,null,null,0,0]
["120","Chêne ",null,null,null,0,0]
["141","Frêne d’Amérique (blanc)",null,null,null,0,0]
["142","Frêne noir",null,null,null,0,0]
["150","Hêtre",null,null,null,0,0]
["160","Noyer",null,null,null,0,0]
["165","Caryer",null,null,null,0,0]
["170","Orme",null,null,null,0,0]
["180","Ostryer de Virginie",null,null,null,0,0]
["110","Cerisier tardif",null,null,null,0,0]
["210","Tilleul d’Amérique",null,null,null,0,0]
["041","Pin blanc",null,null,null,0,0]
["042","Pin rouge",null,null,null,0,0]
["050","Pruche de l’Est",null,null,null,0,0]
["080","Thuya occidental",null,null,null,0,0]
[null,"Je déclare que les volumes de matière ligneuse non utilisée indiqués à cette déclaration couvrent l'ensemble des secteurs d'intervention de l'UA sous la responsabilité du BGAd indiqué à cette déclaration et que ces volumes sont déterminés en conformité à la règlementation en vigueur et à l'instruction sur la «Détermination des superficies récoltées pour fins de reddition de comptes»."]
[]
[]
[]
[null,"signature : _____________________________________________________ ing. f.               Date : ______________________"]
[]
[]
[]
[null,null,null,{"$f":"SUBTOTAL(9,D8:D34)","v":0},{"$f":"SUBTOTAL(9,E8:E34)","v":0},{"$f":"SUBTOTAL(9,F8:F34)","v":0},{"$f":"SUBTOTAL(9,G8:G34)","v":0},null,{"$f":"SUBTOTAL(9,I8:I34)","v":0},null,null,{"$f":"SUBTOTAL(9,L8:L34)","v":0}]
[]
[]
[]
[]
[]
[]
[null,null,null,"MANUEL SUR LA GESTION DES VOLUMES RÉCOLTÉS"]
[null,null,null,"6.3.2.1 Matière ligneuse non utilisée - régulière (MLNU-RG)"]
[null,null,null,"6.3.2.2 Matière ligneuse non utilisée - non désirée (MLNU-ND)"]
[null,null,null,"6.3.2.3 Matière ligneuse non utilisée - sans preneur (MLNU-SP)"]
[]
[]
[]
[]
[]
[]
[]
[]
[]
[]
[]
[null,null,null,null,null,null,null,null,null,67]
[null,null,null,null,null,null,null,null,null,68]
[null,null,null,null,null,null,null,null,null,69]
[null,null,null,null,null,null,null,null,null,70]
[null,null,null,null,null,null,null,null,null,71]
[null,null,null,null,null,null,null,null,null,72]
[null,null,null,null,null,null,null,null,null,73]
[null,null,null,null,null,null,null,null,null,74]

{"sheet":"BGAD7","index":7,"n_rows":72,"n_cols":16,"rows_kept":72,"cut":false,"hidden":false,"merged":[[4,0,4,1],[4,2,4,3],[0,0,0,9],[2,0,2,1],[2,2,2,3],[3,0,3,1],[3,2,3,3],[51,3,51,7],[52,3,52,7],[5,8,5,9],[6,3,6,6],[6,8,6,9],[34,1,36,9],[49,3,49,7],[50,3,50,7]]}
["Déclaration de la MLNU"]
[null,null,null,null,null,null,null,null,null,null,null,null,null,null,null,"2016-2017"]
["Année de récolte :",null,"2018-2019",null,null,null,null,null,null,null,null,null,null,null,null,"2017-2018"]
["Unité d'aménagement :"]
["No. Du BGAd :",null,null,null,null,null,null,null,null,null,null,null,null,null,null,"2018-2019"]
[null,null,null,null,null,null,null,null,"Répartition",null,null,null,null,null,null,"2019-2020"]
[null,null,null,"Volume de MLNU",null,null,null,null,"MLNU-ND Qualité «U»"]
["Code Essence","Nom essence","No. Client","MLNU-RG\nQualité \"V\"","MLNU-ND\nQualité \"X\"","MLNU-ND\nQualité \"U\"","Total du Client",null,"Ententes\n«Autres»","Mesure budgétaire"]
["010","Épinette (autre que Norvège)",null,null,null,{"$f":"SUM(I9:J9)","v":0},{"$f":"SUM(D9:F9)","v":0}]
["014","Épinette de Norvège",null,null,null,{"$f":"SUM(I10:J10)","v":0},{"$f":"SUM(D10:F10)","v":0}]
["030","Mélèze laricin",null,null,null,0,0]
["043","Pin gris et sylvestre",null,null,null,0,0]
["060","Sapin baumier",null,null,null,0,0]
["190","Peuplier (autre que Baumier)",null,null,null,0,{"$f":"SUM(D14:F14)","v":0}]
["191","Peuplier baumier",null,null,null,0,{"$f":"SUM(D15:F15)","v":0}]
["105","Bouleau blanc ",null,null,null,0,0]
["104","Bouleau jaune",null,null,null,0,0]
["132","Érable à sucre",null,null,null,0,0]
["133","Érable rouge",null,null,null,0,0]
["135","Érables - Autres ",null,null,null,0,0]
["120","Chêne ",null,null,null,0,0]
["141","Frêne d’Amérique (blanc)",null,null,null,0,0]
["142","Frêne noir",null,null,null,0,0]
["150","Hêtre",null,null,null,0,0]
["160","Noyer",null,null,null,0,0]
["165","Caryer",null,null,null,0,0]
["170","Orme",null,null,null,0,0]
["180","Ostryer de Virginie",null,null,null,0,0]
["110","Cerisier tardif",null,null,null,0,0]
["210","Tilleul d’Amérique",null,null,null,0,0]
["041","Pin blanc",null,null,null,0,0]
["042","Pin rouge",null,null,null,0,0]
["050","Pruche de l’Est",null,null,null,0,0]
["080","Thuya occidental",null,null,null,0,0]
[null,"Je déclare que les volumes de matière ligneuse non utilisée indiqués à cette déclaration couvrent l'ensemble des secteurs d'intervention de l'UA sous la responsabilité du BGAd indiqué à cette déclaration et que ces volumes sont déterminés en conformité à la règlementation en vigueur et à l'instruction sur la «Détermination des superficies récoltées pour fins de reddition de comptes»."]
[]
[]
[]
[null,"signature : _____________________________________________________ ing. f.               Date : ______________________"]
[]
[]
[]
[null,null,null,{"$f":"SUBTOTAL(9,D8:D34)","v":0},{"$f":"SUBTOTAL(9,E8:E34)","v":0},{"$f":"SUBTOTAL(9,F8:F34)","v":0},{"$f":"SUBTOTAL(9,G8:G34)","v":0},null,{"$f":"SUBTOTAL(9,I8:I34)","v":0},null,null,{"$f":"SUBTOTAL(9,L8:L34)","v":0}]
[]
[]
[]
[]
[]
[]
[null,null,null,"MANUEL SUR LA GESTION DES VOLUMES RÉCOLTÉS"]
[null,null,null,"6.3.2.1 Matière ligneuse non utilisée - régulière (MLNU-RG)"]
[null,null,null,"6.3.2.2 Matière ligneuse non utilisée - non désirée (MLNU-ND)"]
[null,null,null,"6.3.2.3 Matière ligneuse non utilisée - sans preneur (MLNU-SP)"]
[]
[]
[]
[]
[]
[]
[]
[]
[]
[]
[]
[null,null,null,null,null,null,null,null,null,67]
[null,null,null,null,null,null,null,null,null,68]
[null,null,null,null,null,null,null,null,null,69]
[null,null,null,null,null,null,null,null,null,70]
[null,null,null,null,null,null,null,null,null,71]
[null,null,null,null,null,null,null,null,null,72]
[null,null,null,null,null,null,null,null,null,73]
[null,null,null,null,null,null,null,null,null,74]

{"sheet":"BGAD8","index":8,"n_rows":72,"n_cols":16,"rows_kept":72,"cut":false,"hidden":false,"merged":[[4,0,4,1],[4,2,4,3],[0,0,0,9],[2,0,2,1],[2,2,2,3],[3,0,3,1],[3,2,3,3],[51,3,51,7],[52,3,52,7],[5,8,5,9],[6,3,6,6],[6,8,6,9],[34,1,36,9],[49,3,49,7],[50,3,50,7]]}
["Déclaration de la MLNU"]
[null,null,null,null,null,null,null,null,null,null,null,null,null,null,null,"2016-2017"]
["Année de récolte :",null,"2018-2019",null,null,null,null,null,null,null,null,null,null,null,null,"2017-2018"]
["Unité d'aménagement :"]
["No. Du BGAd :",null,null,null,null,null,null,null,null,null,null,null,null,null,null,"2018-2019"]
[null,null,null,null,null,null,null,null,"Répartition",null,null,null,null,null,null,"2019-2020"]
[null,null,null,"Volume de MLNU",null,null,null,null,"MLNU-ND Qualité «U»"]
["Code Essence","Nom essence","No. Client","MLNU-RG\nQualité \"V\"","MLNU-ND\nQualité \"X\"","MLNU-ND\nQualité \"U\"","Total du Client",null,"Ententes\n«Autres»","Mesure budgétaire"]
["010","Épinette (autre que Norvège)",null,null,null,{"$f":"SUM(I9:J9)","v":0},{"$f":"SUM(D9:F9)","v":0}]
["014","Épinette de Norvège",null,null,null,{"$f":"SUM(I10:J10)","v":0},{"$f":"SUM(D10:F10)","v":0}]
["030","Mélèze laricin",null,null,null,0,0]
["043","Pin gris et sylvestre",null,null,null,0,0]
["060","Sapin baumier",null,null,null,0,0]
["190","Peuplier (autre que Baumier)",null,null,null,0,{"$f":"SUM(D14:F14)","v":0}]
["191","Peuplier baumier",null,null,null,0,{"$f":"SUM(D15:F15)","v":0}]
["105","Bouleau blanc ",null,null,null,0,0]
["104","Bouleau jaune",null,null,null,0,0]
["132","Érable à sucre",null,null,null,0,0]
["133","Érable rouge",null,null,null,0,0]
["135","Érables - Autres ",null,null,null,0,0]
["120","Chêne ",null,null,null,0,0]
["141","Frêne d’Amérique (blanc)",null,null,null,0,0]
["142","Frêne noir",null,null,null,0,0]
["150","Hêtre",null,null,null,0,0]
["160","Noyer",null,null,null,0,0]
["165","Caryer",null,null,null,0,0]
["170","Orme",null,null,null,0,0]
["180","Ostryer de Virginie",null,null,null,0,0]
["110","Cerisier tardif",null,null,null,0,0]
["210","Tilleul d’Amérique",null,null,null,0,0]
["041","Pin blanc",null,null,null,0,0]
["042","Pin rouge",null,null,null,0,0]
["050","Pruche de l’Est",null,null,null,0,0]
["080","Thuya occidental",null,null,null,0,0]
[null,"Je déclare que les volumes de matière ligneuse non utilisée indiqués à cette déclaration couvrent l'ensemble des secteurs d'intervention de l'UA sous la responsabilité du BGAd indiqué à cette déclaration et que ces volumes sont déterminés en conformité à la règlementation en vigueur et à l'instruction sur la «Détermination des superficies récoltées pour fins de reddition de comptes»."]
[]
[]
[]
[null,"signature : _____________________________________________________ ing. f.               Date : ______________________"]
[]
[]
[]
[null,null,null,{"$f":"SUBTOTAL(9,D8:D34)","v":0},{"$f":"SUBTOTAL(9,E8:E34)","v":0},{"$f":"SUBTOTAL(9,F8:F34)","v":0},{"$f":"SUBTOTAL(9,G8:G34)","v":0},null,{"$f":"SUBTOTAL(9,I8:I34)","v":0},null,null,{"$f":"SUBTOTAL(9,L8:L34)","v":0}]
[]
[]
[]
[]
[]
[]
[null,null,null,"MANUEL SUR LA GESTION DES VOLUMES RÉCOLTÉS"]
[null,null,null,"6.3.2.1 Matière ligneuse non utilisée - régulière (MLNU-RG)"]
[null,null,null,"6.3.2.2 Matière ligneuse non utilisée - non désirée (MLNU-ND)"]
[null,null,null,"6.3.2.3 Matière ligneuse non utilisée - sans preneur (MLNU-SP)"]
[]
[]
[]
[]
[]
[]
[]
[]
[]
[]
[]
[null,null,null,null,null,null,null,null,null,67]
[null,null,null,null,null,null,null,null,null,68]
[null,null,null,null,null,null,null,null,null,69]
[null,null,null,null,null,null,null,null,null,70]
[null,null,null,null,null,null,null,null,null,71]
[null,null,null,null,null,null,null,null,null,72]
[null,null,null,null,null,null,null,null,null,73]
[null,null,null,null,null,null,null,null,null,74]

{"sheet":"BGAD9","index":9,"n_rows":72,"n_cols":16,"rows_kept":72,"cut":false,"hidden":false,"merged":[[4,0,4,1],[4,2,4,3],[0,0,0,9],[2,0,2,1],[2,2,2,3],[3,0,3,1],[3,2,3,3],[51,3,51,7],[52,3,52,7],[5,8,5,9],[6,3,6,6],[6,8,6,9],[34,1,36,9],[49,3,49,7],[50,3,50,7]]}
["Déclaration de la MLNU"]
[null,null,null,null,null,null,null,null,null,null,null,null,null,null,null,"2016-2017"]
["Année de récolte :",null,"2018-2019",null,null,null,null,null,null,null,null,null,null,null,null,"2017-2018"]
["Unité d'aménagement :"]
["No. Du BGAd :",null,null,null,null,null,null,null,null,null,null,null,null,null,null,"2018-2019"]
[null,null,null,null,null,null,null,null,"Répartition",null,null,null,null,null,null,"2019-2020"]
[null,null,null,"Volume de MLNU",null,null,null,null,"MLNU-ND Qualité «U»"]
["Code Essence","Nom essence","No. Client","MLNU-RG\nQualité \"V\"","MLNU-ND\nQualité \"X\"","MLNU-ND\nQualité \"U\"","Total du Client",null,"Ententes\n«Autres»","Mesure budgétaire"]
["010","Épinette (autre que Norvège)",null,null,null,{"$f":"SUM(I9:J9)","v":0},{"$f":"SUM(D9:F9)","v":0}]
["014","Épinette de Norvège",null,null,null,{"$f":"SUM(I10:J10)","v":0},{"$f":"SUM(D10:F10)","v":0}]
["030","Mélèze laricin",null,null,null,0,0]
["043","Pin gris et sylvestre",null,null,null,0,0]
["060","Sapin baumier",null,null,null,0,0]
["190","Peuplier (autre que Baumier)",null,null,null,0,{"$f":"SUM(D14:F14)","v":0}]
["191","Peuplier baumier",null,null,null,0,{"$f":"SUM(D15:F15)","v":0}]
["105","Bouleau blanc ",null,null,null,0,0]
["104","Bouleau jaune",null,null,null,0,0]
["132","Érable à sucre",null,null,null,0,0]
["133","Érable rouge",null,null,null,0,0]
["135","Érables - Autres ",null,null,null,0,0]
["120","Chêne ",null,null,null,0,0]
["141","Frêne d’Amérique (blanc)",null,null,null,0,0]
["142","Frêne noir",null,null,null,0,0]
["150","Hêtre",null,null,null,0,0]
["160","Noyer",null,null,null,0,0]
["165","Caryer",null,null,null,0,0]
["170","Orme",null,null,null,0,0]
["180","Ostryer de Virginie",null,null,null,0,0]
["110","Cerisier tardif",null,null,null,0,0]
["210","Tilleul d’Amérique",null,null,null,0,0]
["041","Pin blanc",null,null,null,0,0]
["042","Pin rouge",null,null,null,0,0]
["050","Pruche de l’Est",null,null,null,0,0]
["080","Thuya occidental",null,null,null,0,0]
[null,"Je déclare que les volumes de matière ligneuse non utilisée indiqués à cette déclaration couvrent l'ensemble des secteurs d'intervention de l'UA sous la responsabilité du BGAd indiqué à cette déclaration et que ces volumes sont déterminés en conformité à la règlementation en vigueur et à l'instruction sur la «Détermination des superficies récoltées pour fins de reddition de comptes»."]
[]
[]
[]
[null,"signature : _____________________________________________________ ing. f.               Date : ______________________"]
[]
[]
[]
[null,null,null,{"$f":"SUBTOTAL(9,D8:D34)","v":0},{"$f":"SUBTOTAL(9,E8:E34)","v":0},{"$f":"SUBTOTAL(9,F8:F34)","v":0},{"$f":"SUBTOTAL(9,G8:G34)","v":0},null,{"$f":"SUBTOTAL(9,I8:I34)","v":0},null,null,{"$f":"SUBTOTAL(9,L8:L34)","v":0}]
[]
[]
[]
[]
[]
[]
[null,null,null,"MANUEL SUR LA GESTION DES VOLUMES RÉCOLTÉS"]
[null,null,null,"6.3.2.1 Matière ligneuse non utilisée - régulière (MLNU-RG)"]
[null,null,null,"6.3.2.2 Matière ligneuse non utilisée - non désirée (MLNU-ND)"]
[null,null,null,"6.3.2.3 Matière ligneuse non utilisée - sans preneur (MLNU-SP)"]
[]
[]
[]
[]
[]
[]
[]
[]
[]
[]
[]
[null,null,null,null,null,null,null,null,null,67]
[null,null,null,null,null,null,null,null,null,68]
[null,null,null,null,null,null,null,null,null,69]
[null,null,null,null,null,null,null,null,null,70]
[null,null,null,null,null,null,null,null,null,71]
[null,null,null,null,null,null,null,null,null,72]
[null,null,null,null,null,null,null,null,null,73]
[null,null,null,null,null,null,null,null,null,74]

{"sheet":"BGAD10","index":10,"n_rows":72,"n_cols":16,"rows_kept":72,"cut":false,"hidden":false,"merged":[[4,0,4,1],[4,2,4,3],[0,0,0,9],[2,0,2,1],[2,2,2,3],[3,0,3,1],[3,2,3,3],[51,3,51,7],[52,3,52,7],[5,8,5,9],[6,3,6,6],[6,8,6,9],[34,1,36,9],[49,3,49,7],[50,3,50,7]]}
["Déclaration de la MLNU"]
[null,null,null,null,null,null,null,null,null,null,null,null,null,null,null,"2016-2017"]
["Année de récolte :",null,"2018-2019",null,null,null,null,null,null,null,null,null,null,null,null,"2017-2018"]
["Unité d'aménagement :"]
["No. Du BGAd :",null,null,null,null,null,null,null,null,null,null,null,null,null,null,"2018-2019"]
[null,null,null,null,null,null,null,null,"Répartition",null,null,null,null,null,null,"2019-2020"]
[null,null,null,"Volume de MLNU",null,null,null,null,"MLNU-ND Qualité «U»"]
["Code Essence","Nom essence","No. Client","MLNU-RG\nQualité \"V\"","MLNU-ND\nQualité \"X\"","MLNU-ND\nQualité \"U\"","Total du Client",null,"Ententes\n«Autres»","Mesure budgétaire"]
["010","Épinette (autre que Norvège)",null,null,null,{"$f":"SUM(I9:J9)","v":0},{"$f":"SUM(D9:F9)","v":0}]
["014","Épinette de Norvège",null,null,null,{"$f":"SUM(I10:J10)","v":0},{"$f":"SUM(D10:F10)","v":0}]
["030","Mélèze laricin",null,null,null,0,0]
["043","Pin gris et sylvestre",null,null,null,0,0]
["060","Sapin baumier",null,null,null,0,0]
["190","Peuplier (autre que Baumier)",null,null,null,0,{"$f":"SUM(D14:F14)","v":0}]
["191","Peuplier baumier",null,null,null,0,{"$f":"SUM(D15:F15)","v":0}]
["105","Bouleau blanc ",null,null,null,0,0]
["104","Bouleau jaune",null,null,null,0,0]
["132","Érable à sucre",null,null,null,0,0]
["133","Érable rouge",null,null,null,0,0]
["135","Érables - Autres ",null,null,null,0,0]
["120","Chêne ",null,null,null,0,0]
["141","Frêne d’Amérique (blanc)",null,null,null,0,0]
["142","Frêne noir",null,null,null,0,0]
["150","Hêtre",null,null,null,0,0]
["160","Noyer",null,null,null,0,0]
["165","Caryer",null,null,null,0,0]
["170","Orme",null,null,null,0,0]
["180","Ostryer de Virginie",null,null,null,0,0]
["110","Cerisier tardif",null,null,null,0,0]
["210","Tilleul d’Amérique",null,null,null,0,0]
["041","Pin blanc",null,null,null,0,0]
["042","Pin rouge",null,null,null,0,0]
["050","Pruche de l’Est",null,null,null,0,0]
["080","Thuya occidental",null,null,null,0,0]
[null,"Je déclare que les volumes de matière ligneuse non utilisée indiqués à cette déclaration couvrent l'ensemble des secteurs d'intervention de l'UA sous la responsabilité du BGAd indiqué à cette déclaration et que ces volumes sont déterminés en conformité à la règlementation en vigueur et à l'instruction sur la «Détermination des superficies récoltées pour fins de reddition de comptes»."]
[]
[]
[]
[null,"signature : _____________________________________________________ ing. f.               Date : ______________________"]
[]
[]
[]
[null,null,null,{"$f":"SUBTOTAL(9,D8:D34)","v":0},{"$f":"SUBTOTAL(9,E8:E34)","v":0},{"$f":"SUBTOTAL(9,F8:F34)","v":0},{"$f":"SUBTOTAL(9,G8:G34)","v":0},null,{"$f":"SUBTOTAL(9,I8:I34)","v":0},null,null,{"$f":"SUBTOTAL(9,L8:L34)","v":0}]
[]
[]
[]
[]
[]
[]
[null,null,null,"MANUEL SUR LA GESTION DES VOLUMES RÉCOLTÉS"]
[null,null,null,"6.3.2.1 Matière ligneuse non utilisée - régulière (MLNU-RG)"]
[null,null,null,"6.3.2.2 Matière ligneuse non utilisée - non désirée (MLNU-ND)"]
[null,null,null,"6.3.2.3 Matière ligneuse non utilisée - sans preneur (MLNU-SP)"]
[]
[]
[]
[]
[]
[]
[]
[]
[]
[]
[]
[null,null,null,null,null,null,null,null,null,67]
[null,null,null,null,null,null,null,null,null,68]
[null,null,null,null,null,null,null,null,null,69]
[null,null,null,null,null,null,null,null,null,70]
[null,null,null,null,null,null,null,null,null,71]
[null,null,null,null,null,null,null,null,null,72]
[null,null,null,null,null,null,null,null,null,73]
[null,null,null,null,null,null,null,null,null,74]